Cogmind - Beta 13 X1 @@@ ROGUE MODE // 2023.08.09 @ 18:20:10 Player: corny Result: Destroyed by H-55 Commando with Gauss Rifle Performance ------------- Evolutions (3) 1500 Regions Visited (5) 1000 Robots Destroyed (53) 265 Value Destroyed (1642) 1642 Prototype IDs (8) 160 Alien Tech Used (0) 0 Bonus (114) 114 TOTAL SCORE: 4681 Bonus ------- High Alert Combat Kills 69 Follower Combat Kills 58 Friendly Fire -13 Cogmind --------- Core Integrity 0/700 Matter 2/300 Energy 152/160 System Corruption 0% Temperature Cool (4) Movement Walking (120) Location -7/Factory Parts ------- > --- POWER (1) -------- Light Nuclear Core > --- PROPULSION (4) --- Aluminum Leg Improved Aluminum Leg Carbon-fiber Leg Carbon-fiber Leg > --- UTILITY (6) ------ Large Storage Unit Improved Signal Interpreter Advanced Targeting Computer Utility Shielding > --- WEAPON (2) ------- Heavy Assault Rifle > --- INVENTORY (15) --- Carbon-fiber Leg Titanium Leg Improved Carbon-fiber Leg Improved Heat Sink Improved Sensor Array ECM Suite Lightning Gun Particle Gun Heavy Laser Gatling Laser Peak State ------------ > --- POWER ------------ Light Deuterium Engine > --- PROPULSION ------- Carbon-fiber Leg Carbon-fiber Leg Armored Huge Wheel > --- UTILITY ---------- Large Storage Unit Improved Signal Interpreter Advanced Targeting Computer Improved Light Armor Plating Improved Light Armor Plating Reactive Plating > --- WEAPON ----------- Heavy Laser High-powered Shotgun > --- INVENTORY -------- Improved Aluminum Leg Carbon-fiber Leg Carbon-fiber Leg Carbon-fiber Leg Titanium Leg Improved Carbon-fiber Leg Improved Heat Sink Improved Sensor Array ECM Suite Improved Light Armor Plating Lightning Gun Particle Gun Gatling Laser Heavy Assault Rifle Rocket Launcher [Rating: 44] Favorites ----------- Power Ion Engine Engine Ion Engine Power Core Nuclear Core Propulsion Aluminum Leg Leg Aluminum Leg Wheel Armored Huge Wheel Utility Large Storage Unit Device Structural Scanner Storage Large Storage Unit Processor Targeting Computer Protection Improved Light Armor Plating Weapon Assault Rifle Energy Gun Medium Laser Ballistic Gun Assault Rifle Launcher Rocket Launcher Build | -11 -10 -10 -9 -8 -7 ------- Run | Jun Mat Min Mat Mat Fac Slots Evolved 6 | . . . 2 2 2 Power . | . . . . . . Propulsion 2 | . . . 1 . 1 Utility 4 | . . . 1 2 1 Weapon . | . . . . . . Parts Attached 78 | . 5 5 17 12 39 Power 8 | . 1 1 1 2 3 Engine 6 | . 1 1 1 2 1 Core 2 | . . . . . 2 Reactor . | . . . . . . Propulsion 26 | . 1 2 10 3 10 Treads . | . . . . . . Leg 24 | . 1 2 10 3 8 Wheel 2 | . . . . . 2 Hover . | . . . . . . Flight . | . . . . . . Utility 25 | . 3 1 3 4 14 Device 11 | . 2 . 1 3 5 Storage 2 | . 1 . 1 . . Processor 4 | . . 1 . 1 2 Hackware . | . . . . . . Protection 8 | . . . 1 . 7 Artifact . | . . . . . . Weapon 19 | . . 1 3 3 12 Energy Gun 8 | . . . 1 2 5 Energy Cannon . | . . . . . . Ballistic Gun 9 | . . 1 2 1 5 Ballistic Cannon . | . . . . . . Launcher 2 | . . . . . 2 Special Weapon . | . . . . . . Impact Weapon . | . . . . . . Slashing Weapon . | . . . . . . Piercing Weapon . | . . . . . . Special Melee Weapon . | . . . . . . Unidentified Prototypes 1 | . . . . . 1 Parts Lost 15 | . 1 . 3 . 11 Power 3 | . . . 1 . 2 Propulsion 5 | . . . 2 . 3 Utility 4 | . 1 . . . 3 Weapon 3 | . . . . . 3 Highest Loss Streak 9 | . 1 . 2 . 9 To Critical Strikes . | . . . . . . Average Slot Usage (%) 95 | . 96 100 97 98 87 Engine 9 | . 14 14 10 9 2 Leg 25 | . 28 28 32 27 15 Wheel 1 | . . . . . 6 Device 10 | . 10 7 7 17 13 Storage 10 | . 14 14 11 9 7 Processor 8 | . . 6 11 10 15 Protection 3 | . . . 2 7 7 Energy Gun 11 | . 14 14 11 10 6 Ballistic Gun 10 | . 14 14 11 7 6 Naked Turns . | . . . . . . Heaviest Build 48 | 12 30 30 34 36 48 Greatest Support 59 | 20 20 20 40 46 59 Greatest Overweight (x) 8 | . 1 1 1 . 8 Average Overweight (x) . | . . 1 . . 1 Largest Inventory Capacity 15 | . 15 15 15 15 15 Average Capacity 14 | . 12 15 15 15 15 Most Carried 15 | . 9 15 15 15 15 Average Carried 13 | . 7 13 14 14 14 Final Capacity 15 | 8 15 15 15 15 15 Final Carried 15 | 6 9 14 15 15 10 Class Distribution -------------------- 59% | Mutant 37% | Scavenger-Mutant Dominant Class ---------------- Mutant | -10/Materials Mutant | -10/Mines Scavenger-Mutant | -9/Materials Scavenger-Mutant | -8/Materials Mutant | -7/Factory Resources | -11 -10 -10 -9 -8 -7 ----------- Run | Jun Mat Min Mat Mat Fac Matter Collected 1117 | 200 104 89 256 150 318 Remotely . | . . . . . . Salvage Created 1819 | . 357 174 542 269 477 Parts 104 | . 21 14 30 10 29 Haulers Intercepted . | . . . . . . Recyclers Shooed . | . . . . . . Parts Field Recycled . | . . . . . . Retrieved Matter . | . . . . . . Parts Self-Destructed . | . . . . . . Prevented . | . . . . . . Kills | -11 -10 -10 -9 -8 -7 ------- Run | Jun Mat Min Mat Mat Fac Combat Hostiles Destroyed 37 | . 10 2 11 1 13 Guns 29 | . 10 2 11 1 5 AOE 8 | . . . . . 8 Classes Destroyed 10 | . 2 2 3 1 2 Worker 5 | . . 3 . . 2 Builder 3 | . . . . . 3 Tunneler 1 | . . 1 . . . Recycler 3 | . . . 1 2 . Watcher 4 | . . . 1 2 1 Swarmer 9 | . 3 . 4 . 2 Grunt 18 | . 7 2 3 . 6 Duelist 2 | . . . . . 2 Sentry 7 | . . . 4 . 3 Hunter 1 | . . . . 1 . Best Kill Streak 10 | . 3 3 3 4 10 Combat Bots Only 6 | . 3 2 3 1 6 Max Kills in Single Turn 2 | . 1 1 1 1 2 Gunslinging . | . . . . . . Exploded 2 | . . . . . 2 Melee . | . . . . . . Uniques/NPCs Destroyed . | . . . . . . Combat | -11 -10 -10 -9 -8 -7 -------- Run | Jun Mat Min Mat Mat Fac Damage Taken 3946 | . 302 121 467 213 2843 Core 911 | . 94 10 60 45 702 Absorbed by Shields . | . . . . . . Redirected to Shielding 20 | . . . . . 20 Ignored by Resistances 46 | . . . . . 46 Core Remaining (%) 83 | 100 . 58 85 91 . Volleys Fired 138 | . 19 13 35 11 60 Largest 2 | . 2 2 2 2 2 Hottest 96 | . 70 70 79 96 96 Shots Fired 247 | . 38 26 70 22 91 Gun 238 | . 38 26 70 22 82 Cannon . | . . . . . . Launcher 9 | . . . . . 9 Special . | . . . . . . Kinetic 125 | . 19 13 35 10 48 Thermal 102 | . 19 13 35 11 24 Explosive 9 | . . . . . 9 Electromagnetic 11 | . . . . 1 10 Robot Hit Streak 16 | . 14 9 16 6 16 Robot Miss Streak 5 | . 4 1 3 2 5 Penetration Max . | . . . . . . Secondary Targets 3 | . . . 1 1 1 Max Gunslinging Chain 1 | . . . 1 1 1 Shots Hit Robots 182 | . 29 17 52 13 71 Core Hits 110 | . 18 10 19 9 54 Critical Kills . | . . . . . . Critical Parts Destroyed 2 | . . . 2 . . Critical Strikes 7 | . 2 . 4 1 . Burn 5 | . 2 . 2 1 . Destroy 2 | . . . 2 . . Melee Attacks . | . . . . . . Impact . | . . . . . . Slashing . | . . . . . . Piercing . | . . . . . . Sneak Attacks . | . . . . . . Combat Hostiles . | . . . . . . Follow-up Attacks . | . . . . . . Damage Inflicted 4169 | . 389 249 822 234 2475 Guns 2746 | . 389 249 822 234 1052 Cannons . | . . . . . . Explosions 1423 | . . . . . 1423 Melee . | . . . . . . Ramming . | . . . . . . Kinetic 1488 | . 203 110 377 125 673 Thermal 1520 | . 186 139 445 85 665 Explosive 1057 | . . . . . 1057 Electromagnetic 104 | . . . . 24 80 Impact . | . . . . . . Slashing . | . . . . . . Piercing . | . . . . . . Highest Corruption 1 | . 1 1 . . . Average Corruption 1 | . 1 1 . . . Corruption Purged . | . . . . . . Corruption Blocked . | . . . . . . Effects 6 | . 2 4 . . . Message Errors 3 | . 2 1 . . . Heat Flow Errors 2 | . . 2 . . . Data Loss (major) 1 | . . 1 . . . Overload Shots . | . . . . . . Overflow Damage 15 | . . . . . 15 Projectiles . | . . . . . . Explosions 15 | . . . . . 15 Melee . | . . . . . . Knockbacks . | . . . . . . Impact . | . . . . . . Kinetic . | . . . . . . Secondary . | . . . . . . Self-Inflicted Damage 418 | . . . . . 418 Shots 8 | . . . . . 8 Rammed . | . . . . . . Targets Rammed . | . . . . . . Kicked . | . . . . . . Crushed . | . . . . . . Highest Temperature 349 | . 132 227 96 . 349 Average Temperature 69 | . 38 53 26 . 141 Received Heat Transfer 1182 | . 105 66 174 . 837 Effects 4 | . . . . . 4 Energy Bleed 1 | . . . . . 1 Interference 3 | . . . . . 3 Siege Activations . | . . . . . . Robots Corrupted . | . . . . . . Combat Hostiles . | . . . . . . Parts Fried . | . . . . . . Impact Corruptions . | . . . . . . Robots Melted . | . . . . . . Combat Hostiles . | . . . . . . Parts Melted 6 | . 1 . 4 . 1 Heat Transferred 3173 | . 666 407 1110 259 731 Parts Sabotaged . | . . . . . . Parts Stolen . | . . . . . . Parts Stripped . | . . . . . . Power Chain Reactions . | . . . . . . Missiles Intercepted . | . . . . . . Alert | -11 -10 -10 -9 -8 -7 ------- Run | Jun Mat Min Mat Mat Fac Peak Influence 546 | . 283 84 244 201 546 Initial 91 | . . 34 6 67 91 Average 131 | . 102 53 117 122 242 Maximum Alert Level 2 | . 1 . 1 1 2 Low Security (%) 80 | . 86 100 88 83 51 Level 1 14 | . 13 . 11 16 32 Level 2 4 | . . . . . 16 Level 3 . | . . . . . . Level 4 . | . . . . . . Level 5 . | . . . . . . High Security . | . . . . . . Max Security . | . . . . . . Squads Dispatched 7 | . 2 . 1 1 3 Investigation 2 | . 1 . . 1 . Extermination . | . . . . . . Reinforcement 3 | . 1 . 1 . 1 Assault 1 | . . . . . 1 Garrison 1 | . . . . . 1 Intercept . | . . . . . . Searches Triggered . | . . . . . . Construction Impeded 1 | . . . . . 1 Haulers Reinforced . | . . . . . . Active Scanning Responses . | . . . . . . Cargo Convoy Interrupts . | . . . . . . Stealth | -11 -10 -10 -9 -8 -7 --------- Run | Jun Mat Min Mat Mat Fac Distress Signals 4 | . 1 . 1 2 . Communications Jammed . | . . . . . . Distress Signals . | . . . . . . Times Spotted 60 | . 14 3 15 7 21 Peak Tracking Total 8 | . 3 2 5 3 8 Tactical Retreats 3 | . . . . 1 2 Traps | -11 -10 -10 -9 -8 -7 ------- Run | Jun Mat Min Mat Mat Fac Traps Triggered 2 | . . . 1 . 1 Indirectly . | . . . . . . Trap Hack Attempts . | . . . . . . Triggered . | . . . . . . Disarmed . | . . . . . . Reprogrammed 6 | . 6 . . . . Reused . | . . . . . . Traps Extracted . | . . . . . . Installed . | . . . . . . Triggered . | . . . . . . Machines | -11 -10 -10 -9 -8 -7 ---------- Run | Jun Mat Min Mat Mat Fac Machines Disabled 5 | . . . . 1 4 Max in Single Turn 4 | . . . . 1 4 Garrison Access 1 | . . . . . 1 Machines Repaired . | . . . . . . Machines Sabotaged . | . . . . . . Overloaded Fab Kills . | . . . . . . Hacking | -11 -10 -10 -9 -8 -7 --------- Run | Jun Mat Min Mat Mat Fac Machines Accessed 11 | . 4 . 1 3 3 Terminals 10 | . 3 . 1 3 3 Fabricators . | . . . . . . Repair Stations . | . . . . . . Recycling Units 1 | . 1 . . . . Scanalyzers . | . . . . . . Garrison Access . | . . . . . . Total Hacks 33 | . 14 . 4 9 6 Successful 14 | . 7 . 2 4 1 Failed 19 | . 7 . 2 5 5 Catastrophic 4 | . 2 . . 1 1 Database Lockouts . | . . . . . . Manual 7 | . 5 . 1 . 1 Terminals 30 | . 11 . 4 9 6 Fabricators . | . . . . . . Repair Stations . | . . . . . . Recycling Units 3 | . 3 . . . . Scanalyzers . | . . . . . . Garrison Access . | . . . . . . Terminal Hacks 13 | . 6 . 2 4 1 Robot Analysis 3 | . 2 . 1 . . Prototype ID Bank 4 | . 1 . 1 2 . Reprogram Traps 1 | . 1 . . . . Hauler Manifests 2 | . 1 . . . 1 Zone Layout 3 | . 1 . . 2 . Fabricator Hacks . | . . . . . . Repair Station Hacks . | . . . . . . Recycling Unit Hacks . | . . . . . . Scanalyzer . | . . . . . . Garrison Access Hacks . | . . . . . . Unauthorized Hacks 1 | . 1 . . . . Terminals 1 | . 1 . . . . Track 1 | . 1 . . . . Fabricators . | . . . . . . Repair Stations . | . . . . . . Recycling Units . | . . . . . . Scanalyzers . | . . . . . . Garrison Access . | . . . . . . Data Cores Recovered . | . . . . . . Used . | . . . . . . Hacking Detections 11 | . 4 . 1 3 3 Full Trace Events 3 | . 2 . . 1 . Feedback Events 1 | . 1 . . . . Corruption 1 | . 1 . . . . Feedback Blocked . | . . . . . . Robot Schematics Acquired . | . . . . . . Robots Built . | . . . . . . Authchips . | . . . . . . Time . | . . . . . . Total Robot Build Rating . | . . . . . . Part Schematics Acquired . | . . . . . . Parts Built . | . . . . . . Authchips . | . . . . . . Time . | . . . . . . Total Part Build Rating . | . . . . . . Parts Repaired . | . . . . . . Time . | . . . . . . Parts Recycled . | . . . . . . Recycled Matter . | . . . . . . Retrieved Matter . | . . . . . . Retrieved Components . | . . . . . . Parts Scanalyzed . | . . . . . . Part Schematics Acquired . | . . . . . . Parts Damaged . | . . . . . . Bothacking | -11 -10 -10 -9 -8 -7 ------------ Run | Jun Mat Min Mat Mat Fac Used RIF Installer . | . . . . . . Robots Hacked . | . . . . . . Non-combat . | . . . . . . Combat . | . . . . . . Robot Hacks Applied . | . . . . . . Relay Couplers Released 1 | . . . . . 1 Machine Destruction 1 | . . . . . 1 Fabnet Peak Effective % . | . . . . . . Robots Rewired . | . . . . . . Allies Hacked . | . . . . . . Hacks Repelled . | . . . . . . Allies | -11 -10 -10 -9 -8 -7 -------- Run | Jun Mat Min Mat Mat Fac Total Allies 3 | . . 3 . . . Largest Group 3 | . . 3 3 . . Highest-Rated Group 80 | . . 80 80 . . Highest-Rated Ally 31 | . . 31 31 . . Total Orders . | . . . . . . Ally Attacks 9 | . . 2 7 . . Total Damage 169 | . . 43 126 . . Kills 2 | . . 1 1 . . Allies Corrupted . | . . . . . . Allies Melted . | . . . . . . Intel | -11 -10 -10 -9 -8 -7 ------- Run | Jun Mat Min Mat Mat Fac Robot Analysis Total 3 | . 2 . 1 . . Derelict Logs Recovered 1 | . . 1 . . . Drone Launches . | . . . . . . Drone Recoveries . | . . . . . . Exploration | -11 -10 -10 -9 -8 -7 ------------- Run | Jun Mat Min Mat Mat Fac Turns Passed 3171 | . 494 882 553 377 865 Spaces Moved 1700 | 1 253 416 264 249 517 Core 6 | . . . . . 6 Treads . | . . . . . . Legs 1228 | 1 253 416 264 249 45 Wheels 466 | . . . . . 466 Hover . | . . . . . . Flight . | . . . . . . Fastest Speed 115 | 120 120 190 126 126 115 Average Speed 145 | 120 153 190 134 126 120 Slowest Speed 450 | 120 190 190 190 126 450 Overloaded Moves . | . . . . . . Propulsion Burnouts . | . . . . . . Robots Hopped . | . . . . . . Cave-ins Triggered . | . . . . . . Exploration Rate (%) 37 | 1 61 95 34 22 13 Regions Visited 5 Branch Regions 1 Pre-discovered Areas . | . . . . . . Known Exits Taken 1 | . . . . 1 . Unknown Exits Taken 4 | 1 1 1 1 . . Scrap Searched 2 | . . 2 . . . Spaces Dug . | . . . . . . Terrain Destroyed 53 | . . . . . 53 Melee . | . . . . . . Projectile . | . . . . . . AOE 53 | . . . . . 53 Terrain Rammed . | . . . . . . Walls Destroyed . | . . . . . . Machines Disabled . | . . . . . . Actions | -11 -10 -10 -9 -8 -7 --------- Run | Jun Mat Min Mat Mat Fac Total 2176 | . 326 482 398 298 672 Wait 171 | . 32 42 67 7 23 Move 1695 | . 252 415 263 248 517 Hop . | . . . . . . Pick Up 35 | . 9 3 6 8 9 Fast Attach 14 | . 2 1 2 1 8 Attach 21 | . . . 5 3 13 Detach 6 | . . 1 . . 5 Swap 43 | . 3 4 10 8 18 Drop 53 | . 9 3 10 12 19 Fire 138 | . 19 13 35 11 60 Melee . | . . . . . . Ram . | . . . . . . Kick . | . . . . . . Crush . | . . . . . . Escape Stasis . | . . . . . . Rewire . | . . . . . . Trap . | . . . . . . Miscellaneous . | . . . . . . Route ------- -11/Junkyard -10/Materials (discovered 3 exits: [*Min x2] / [Sub]) -10/Mines (discovered 2 exits: *Mat x2) -9/Materials (discovered 2 exits: *Mat x2) -8/Materials -7/Factory (discovered 1 exit: *Fac) History --------- Turn | Location | Event 1 | -11/Junkyard | Discovered new exit (range 0) 1 | -11/Junkyard | Entered Materials 107 | -10/Materials | Discovered new exit (range 13) 295 | -10/Materials | Discovered new exit (range 8) 301 | -10/Materials | Build established: Mutant 447 | -10/Materials | Discovered new exit (range 10) 495 | -10/Materials | Entered Mines 689 | -10/Mines | Discovered new exit (range 5) 757 | -10/Mines | Discovered new exit (range 8) 761 | -10/Mines | Learned Materials emergency access door positions 943 | -10/Mines | Joined a pair of Derelicts in attacking an 0b10 outpost 1140 | -10/Mines | Received a Mining Laser from a helpful Derelict 1377 | -10/Mines | Entered Materials 1377 | -9/Materials | Accompanied by 3 allies 1377 | -9/Materials | Evolved 2 slots: Propulsion x1, Utility x1 1382 | -9/Materials | Led the pair of lost Derelicts to an unsafe place 1638 | -9/Materials | Discovered new exit (range 16) 1710 | -9/Materials | Build established: Scavenger-Mutant 1900 | -9/Materials | Discovered new exit (range 5) 1930 | -9/Materials | Entered another Materials area 1930 | -8/Materials | Evolved 2 slots: Utility x2 2219 | -8/Materials | Discovered new exit (range 16) 2306 | -8/Materials | Identified exit to Factory 2307 | -8/Materials | Entered Factory 2307 | -7/Factory | Evolved 2 slots: Propulsion x1, Utility x1 2437 | -7/Factory | Discovered new exit (range 8) 2444 | -7/Factory | Identified exit to Factory 2849 | -7/Factory | Core integrity fell below 50% 3076 | -7/Factory | Core integrity fell below 20% 3129 | -7/Factory | Lost 9 parts (1p3n3u2w) 3145 | -7/Factory | Build established: Mutant 3172 | -7/Factory | Destroyed by H-55 Commando with Gauss Rifle Last Messages --------------- 03083_ The unstable cave ceiling collapses. 03083_ Critical hit (Burn: +37). 03083_ G-47 Trooper destroyed. 03084_ U-05 Engineer destroyed. 03094_ Carbon-fiber Leg destroyed. 03094_ Acquired 9 matter. 03096_ The unstable cave ceiling collapses. 03098_ Rocket Launcher destroyed. 03100_ Acquired 10 matter. 03101_ R-06 Scavenger collects Lgt. Ion Engine. 03108_ G-47 Trooper destroyed. 03109_ R-06 Scavenger collects Wheel. 03112_ R-06 Scavenger collects Imp. Heat Sink. 03114_ Acquired Aluminum Leg. 03115_ The unstable cave ceiling collapses. 03115_ Acquired 40 matter. 03120_ Acquired Lgt. Nuclear Core. 03154_ Acquired 16 matter. 03157_ Slug penetrates U-05 Engineer. 03160_ Slug penetrates Wall. Map ----- +----------------------------------------------------+ | ????????????????????????????????????????????# | | ??????????????????????????? ?"?????????????## | | ??????????????????????????? ""??????????????# | | ????????????????????????????? ?????######### | | ????????????????????###########+######### ###### | | ????????????????????# * | | ????????????????????# % | | ????????????????????# % | | ????????????????????# | | ????????????????????# ! | | ???????????????????## k=!############ #### | | ???????????????????# h =# ##?? | | ???????????????????## # # #?? | | ???????????????????## + !# #?? | | ???????????????????# # = / #?? | | ???????????????????# # #" #?? | | ???????????????????## # #" ! ! #?? | | ????????????????????#^ #!!! #" ! #?? | | ????????????????????# #!! # ##?? | | ????????????????????# #!!! #"" #??? | | ????????????????????# # #"" #??? | | ????????????????????# # #"" ##??? | | ????????????????????# # # #???? | | ????????????????????# ###+############+###???# | | ????????????????????# ### #??????????# #?????# | | ????????????????????# @T## #??????????# #?????# | | ????????????????????# ## #??????????# #?????# | | ????????????????????# ### #??????????# #?????# | | ????????????????????# #?# #??????????# #?????# | | ????????????????????# t ###+#######????# ####### | | ????????????????????# # = [ #????# ## # | | ????????????????????# # #????# ## # | | ????????????????????# # #????# ## # | | ???????????????????? # #????# ## # | | ??????????????????? + !! #???## ## # | | ??????????????????? # !!! ##### # # | | ?????????????????? # !!! + + # | | ????????????????? # ##### # # | | ??????????????????### ###########???# # # | | ????????????????????? ??????######### ###### | | ??????????????????????? # | | ????????????????????????????????######### # | | ?????????????????????????????????# # # | | ?????????????????????????????????# """ # # | | ?????????????????????????????????# """ # # | | ?????????????????????????????????# """ # # | | ?????????????????????????????????# # # | | ?????????????????????????????????# """ + # | | ?????????????????????????????????# """ # # | | ?????????????????????????????????# """ # #### # | +----------------------------------------------------+ Best States ------------- Heat Dissipation 48 Energy Generation 14 Energy Capacity 250 Matter Stores 300 Matter Capacity 300 Sight Range 16 Robot Scan Range 15 Terrain Scan Density 10 ECM Strength 1 Armor Coverage 450 Resistance: KI 20 Utility Shielding 33 Evasion (%) 55 Targeting Accuracy 8 Item Schematics ----------------- None Robot Schematics ------------------ None Fabricated ------------ Nothing Alien Tech Used ----------------- None Achievements -------------- None Challenges ------------ None Game ------ Seed AluminumRainbowThermoblaster Manual? 0 Play Time 00:27:11 Cumulative 182.2 hours Start 2023.08.09 @ 17:48:30 End 2023.08.09 @ 18:20:10 Sessions 1 Manual Loads 0 Difficulty Rogue Special Mode None Game No. 195 Rogue 172 Adventurer 19 Explorer 4 Win Type - Total 5 Types 4/0/1/0/0/0/0/0/0 Lore% 56 Gallery% 64 Achievement% 51 Wizard Run 0 Options --------- ASCII 1 Keyboard 1 Movement Vi Keybinds 0 Fullscreen 1 Font 18/Terminus Map View 76x50 Tactical HUD 1 Map Filters NONE Filters SATURATION(80) Steam X RUN: 16192745-9094-493c-ab4f-9aa0be72f4ec